[Event "*** SCC Grand Prix: Titled Tuesday Blitz"]
[Site "Chess.com"]
[Date "2020.10.06"]
[Round "9"]
[White "Gahan-MG"]
[Black "zajka-molotok"]
[Result "1-0"]
[WhiteElo "2591"]
[BlackElo "2467"]
[TimeControl "180+1"]
[EndTime "11:46:50 PDT"]
[Termination "Gahan-MG won on time"]

1. e4 {[%clk 0:03:00.9]} 1... e6 {[%clk 0:02:58.7]} 2. b3 {[%clk 0:03:00.8]}
2... d5 {[%clk 0:02:58.9]} 3. Bb2 {[%clk 0:03:01.3]} 3... Nf6 {[%clk 0:02:58.8]}
4. e5 {[%clk 0:03:01.4]} 4... Nfd7 {[%clk 0:02:58.6]} 5. c4 {[%clk 0:03:02.3]}
5... c5 {[%clk 0:02:52.5]} 6. cxd5 {[%clk 0:03:01.6]} 6... exd5 {[%clk
0:02:52.3]} 7. f4 {[%clk 0:03:01.5]} 7... Nc6 {[%clk 0:02:51.5]} 8. Nf3 {[%clk
0:03:01.2]} 8... d4 {[%clk 0:02:46.5]} 9. Bc4 {[%clk 0:03:00.7]} 9... Nb6 {[%clk
0:02:43.6]} 10. O-O {[%clk 0:02:59.7]} 10... Nxc4 {[%clk 0:02:39.5]} 11. bxc4
{[%clk 0:03:00.6]} 11... Be7 {[%clk 0:02:34.4]} 12. d3 {[%clk 0:02:59.9]} 12...
O-O {[%clk 0:02:33.8]} 13. Nbd2 {[%clk 0:02:57.9]} 13... f6 {[%clk 0:02:33.3]}
14. exf6 {[%clk 0:02:57.4]} 14... Rxf6 {[%clk 0:02:29.6]} 15. Ne4 {[%clk
0:02:58.3]} 15... Rxf4 {[%clk 0:02:25.9]} 16. Bc1 {[%clk 0:02:52]} 16... Rf8
{[%clk 0:02:23.8]} 17. Nfg5 {[%clk 0:02:38.2]} 17... Bf5 {[%clk 0:02:17.1]} 18.
Qh5 {[%clk 0:02:36]} 18... Bg6 {[%clk 0:02:10.9]} 19. Qg4 {[%clk 0:02:35.4]}
19... Rxf1+ {[%clk 0:02:09.1]} 20. Kxf1 {[%clk 0:02:36.3]} 20... Qf8+ {[%clk
0:01:43.9]} 21. Kg1 {[%clk 0:02:35.2]} 21... Qf5 {[%clk 0:01:43.5]} 22. Qg3
{[%clk 0:02:30.3]} 22... Rf8 {[%clk 0:01:40.7]} 23. Bd2 {[%clk 0:02:28.4]} 23...
Ne5 {[%clk 0:01:19.7]} 24. h4 {[%clk 0:02:05.4]} 24... h6 {[%clk 0:01:18.4]} 25.
Nh3 {[%clk 0:02:00]} 25... Nxd3 {[%clk 0:01:12.4]} 26. Qxd3 {[%clk 0:01:55.1]}
26... Qxe4 {[%clk 0:01:10.2]} 27. Qxe4 {[%clk 0:01:53.9]} 27... Bxe4 {[%clk
0:01:11.1]} 28. Re1 {[%clk 0:01:53.8]} 28... Bxg2 {[%clk 0:01:03.7]} 29. Kxg2
{[%clk 0:01:52.8]} 29... Bxh4 {[%clk 0:01:03.4]} 30. Re5 {[%clk 0:01:47.2]}
30... b6 {[%clk 0:01:01.6]} 31. Rd5 {[%clk 0:01:43]} 31... Rf7 {[%clk
0:00:59.8]} 32. a4 {[%clk 0:01:39.2]} 32... Re7 {[%clk 0:00:55.9]} 33. Kf3
{[%clk 0:01:38]} 33... g5 {[%clk 0:00:50.8]} 34. a5 {[%clk 0:01:35.6]} 34... Kg7
{[%clk 0:00:43.6]} 35. a6 {[%clk 0:01:34.9]} 35... Kg6 {[%clk 0:00:37.1]} 36.
Rd6+ {[%clk 0:01:34.8]} 36... Kf5 {[%clk 0:00:33.1]} 37. Nf2 {[%clk 0:01:26.3]}
37... h5 {[%clk 0:00:30.3]} 38. Rd5+ {[%clk 0:01:25]} 38... Re5 {[%clk
0:00:21.2]} 39. Rxe5+ {[%clk 0:01:12.5]} 39... Kxe5 {[%clk 0:00:22.1]} 40. Nd3+
{[%clk 0:01:09.7]} 40... Kf5 {[%clk 0:00:22.1]} 41. Kg2 {[%clk 0:01:02]} 41...
g4 {[%clk 0:00:18]} 42. Bf4 {[%clk 0:01:00.8]} 42... Ke4 {[%clk 0:00:18]} 43.
Bb8 {[%clk 0:00:59.6]} 43... Kxd3 {[%clk 0:00:17.7]} 44. Bxa7 {[%clk 0:00:59.9]}
44... Kxc4 {[%clk 0:00:10.5]} 45. Bxb6 {[%clk 0:00:55.6]} 45... d3 {[%clk
0:00:11]} 46. Ba5 {[%clk 0:00:52.8]} 46... Bd8 {[%clk 0:00:10.4]} 47. a7 {[%clk
0:00:49.7]} 47... Bxa5 {[%clk 0:00:09.8]} 48. a8=Q {[%clk 0:00:48.2]} 48... d2
{[%clk 0:00:08.8]} 49. Qe4+ {[%clk 0:00:43]} 49... Kc3 {[%clk 0:00:07.6]} 50.
Qb1 {[%clk 0:00:42.1]} 50... Bb4 {[%clk 0:00:04.4]} 51. Kf2 {[%clk 0:00:39]}
51... h4 {[%clk 0:00:02.6]} 52. Ke2 {[%clk 0:00:38.9]} 52... h3 {[%clk
0:00:02.1]} 53. Qg1 {[%clk 0:00:34.6]} 1-0

[Event "*** SCC Grand Prix: Titled Tuesday Blitz"]
[Site "Chess.com"]
[Date "2020.10.06"]
[Round "9"]
[White "Savagelittlemole"]
[Black "Itk04"]
[Result "1/2-1/2"]
[WhiteElo "2594"]
[BlackElo "2481"]
[TimeControl "180+1"]
[EndTime "11:46:53 PDT"]
[Termination "Game drawn by repetition"]

1. e4 {[%clk 0:03:00.9]} 1... e6 {[%clk 0:02:59.8]} 2. d4 {[%clk 0:03:00.1]}
2... d5 {[%clk 0:03:00.7]} 3. Nd2 {[%clk 0:02:58.5]} 3... c5 {[%clk 0:03:00.6]}
4. Ngf3 {[%clk 0:02:57.8]} 4... cxd4 {[%clk 0:03:00.9]} 5. Nxd4 {[%clk
0:02:57.1]} 5... Nc6 {[%clk 0:02:57.7]} 6. Bb5 {[%clk 0:02:57.6]} 6... Bd7
{[%clk 0:02:57]} 7. Bxc6 {[%clk 0:02:52.8]} 7... bxc6 {[%clk 0:02:57.3]} 8. O-O
{[%clk 0:02:48.1]} 8... Bd6 {[%clk 0:02:54.1]} 9. Qe2 {[%clk 0:02:45.4]} 9...
Qc7 {[%clk 0:02:41.7]} 10. N4f3 {[%clk 0:02:42.9]} 10... Ne7 {[%clk 0:02:31.9]}
11. e5 {[%clk 0:02:40.3]} 11... Bc5 {[%clk 0:02:31.6]} 12. Nb3 {[%clk
0:02:35.6]} 12... Bb6 {[%clk 0:02:31.5]} 13. a4 {[%clk 0:02:34.2]} 13... a5
{[%clk 0:02:27.9]} 14. c3 {[%clk 0:02:31.6]} 14... O-O {[%clk 0:02:17.9]} 15.
Nbd4 {[%clk 0:02:28.8]} 15... Ng6 {[%clk 0:02:08.2]} 16. Re1 {[%clk 0:02:19.3]}
16... Rab8 {[%clk 0:02:01.1]} 17. g3 {[%clk 0:02:14.6]} 17... c5 {[%clk
0:01:42.4]} 18. Nb5 {[%clk 0:02:13.9]} 18... Bxb5 {[%clk 0:01:42.5]} 19. axb5
{[%clk 0:02:13.6]} 19... c4 {[%clk 0:01:37.9]} 20. Bg5 {[%clk 0:02:06.6]} 20...
Bc5 {[%clk 0:01:33.8]} 21. h4 {[%clk 0:02:02.5]} 21... h6 {[%clk 0:01:32.4]} 22.
Be3 {[%clk 0:01:59.2]} 22... Rxb5 {[%clk 0:01:31.6]} 23. Bxc5 {[%clk 0:01:56.9]}
23... Qxc5 {[%clk 0:01:30.4]} 24. Nd4 {[%clk 0:01:51.1]} 24... Rb6 {[%clk
0:01:27.1]} 25. h5 {[%clk 0:01:38.6]} 25... Ne7 {[%clk 0:01:26]} 26. g4 {[%clk
0:01:37.9]} 26... Rfb8 {[%clk 0:01:23.4]} 27. Ra2 {[%clk 0:01:32.4]} 27... Nc6
{[%clk 0:01:20.7]} 28. Nf3 {[%clk 0:01:29.7]} 28... d4 {[%clk 0:01:14.3]} 29.
cxd4 {[%clk 0:01:28]} 29... Nxd4 {[%clk 0:01:14.3]} 30. Nxd4 {[%clk 0:01:27.6]}
30... Qxd4 {[%clk 0:01:15.2]} 31. Rd1 {[%clk 0:01:26.9]} 31... Qf4 {[%clk
0:00:53.1]} 32. Kg2 {[%clk 0:01:13.4]} 32... Rb5 {[%clk 0:00:49.5]} 33. Ra4
{[%clk 0:00:59.7]} 33... Rxb2 {[%clk 0:00:37.7]} 34. Rxc4 {[%clk 0:00:57]} 34...
Rxe2 {[%clk 0:00:34.7]} 35. Rxf4 {[%clk 0:00:57.2]} 35... Rxe5 {[%clk
0:00:35.2]} 36. Rd7 {[%clk 0:00:55.2]} 36... f5 {[%clk 0:00:24.5]} 37. gxf5
{[%clk 0:00:51.1]} 37... Rxf5 {[%clk 0:00:25.4]} 38. Rxf5 {[%clk 0:00:48.9]}
38... exf5 {[%clk 0:00:26.3]} 39. Ra7 {[%clk 0:00:47.6]} 39... Rb5 {[%clk
0:00:24]} 40. Kf3 {[%clk 0:00:45.9]} 40... f4 {[%clk 0:00:23.7]} 41. Kg4 {[%clk
0:00:40.8]} 41... Rg5+ {[%clk 0:00:23.4]} 42. Kxf4 {[%clk 0:00:40.8]} 42... Rxh5
{[%clk 0:00:23.4]} 43. Kg4 {[%clk 0:00:39.1]} 43... Rb5 {[%clk 0:00:22.5]} 44.
f4 {[%clk 0:00:34.2]} 44... Kh7 {[%clk 0:00:09.4]} 45. f5 {[%clk 0:00:30.7]}
45... h5+ {[%clk 0:00:09.1]} 46. Kf4 {[%clk 0:00:18.6]} 46... Rb4+ {[%clk
0:00:03.5]} 47. Kg5 {[%clk 0:00:16.2]} 47... Rb5 {[%clk 0:00:03.9]} 48. Kf4
{[%clk 0:00:16.4]} 48... Kh6 {[%clk 0:00:04]} 49. Ra6+ {[%clk 0:00:14.9]} 49...
Kh7 {[%clk 0:00:04.6]} 50. Ra7 {[%clk 0:00:15.4]} 1/2-1/2

[Event "*** SCC Grand Prix: Titled Tuesday Blitz"]
[Site "Chess.com"]
[Date "2020.10.06"]
[Round "9"]
[White "kidagent"]
[Black "Forantes"]
[Result "0-1"]
[WhiteElo "2280"]
[BlackElo "2417"]
[TimeControl "180+1"]
[EndTime "11:46:55 PDT"]
[Termination "Forantes won by resignation"]

1. e4 {[%clk 0:03:00.9]} 1... c5 {[%clk 0:03:00.3]} 2. Nf3 {[%clk 0:03:00.8]}
2... Nc6 {[%clk 0:03:00.9]} 3. d4 {[%clk 0:03:01]} 3... cxd4 {[%clk 0:03:01.8]}
4. Nxd4 {[%clk 0:03:01.6]} 4... e5 {[%clk 0:03:02.3]} 5. Nb5 {[%clk 0:03:01.8]}
5... a6 {[%clk 0:03:02.8]} 6. Nd6+ {[%clk 0:03:00.8]} 6... Bxd6 {[%clk
0:03:03.5]} 7. Qxd6 {[%clk 0:03:00.7]} 7... Qf6 {[%clk 0:03:04.4]} 8. Qa3 {[%clk
0:03:00.9]} 8... Qg6 {[%clk 0:03:04.4]} 9. Nd2 {[%clk 0:02:51.1]} 9... Nf6
{[%clk 0:02:57.6]} 10. f3 {[%clk 0:02:40.5]} 10... d5 {[%clk 0:02:49]} 11. exd5
{[%clk 0:02:30.1]} 11... Nd4 {[%clk 0:02:49.2]} 12. Bd3 {[%clk 0:02:21.4]} 12...
Qxg2 {[%clk 0:02:48.7]} 13. Rf1 {[%clk 0:02:17.8]} 13... Qxh2 {[%clk 0:02:44.4]}
14. c3 {[%clk 0:02:12.4]} 14... Bf5 {[%clk 0:02:32.6]} 15. cxd4 {[%clk 0:02:10]}
15... Bh3 {[%clk 0:02:05.3]} 16. Rf2 {[%clk 0:01:58.5]} 16... Qg1+ {[%clk
0:02:04.3]} 17. Nf1 {[%clk 0:01:53.8]} 17... exd4 {[%clk 0:01:56]} 18. Qa4+
{[%clk 0:01:48.8]} 18... Bd7 {[%clk 0:01:51.7]} 19. Qxd4 {[%clk 0:01:49.2]}
19... O-O {[%clk 0:01:46.3]} 20. Be3 {[%clk 0:01:45.5]} 20... Rac8 {[%clk
0:01:46]} 21. Rc2 {[%clk 0:01:39.2]} 21... Qh1 {[%clk 0:01:33.6]} 22. O-O-O
{[%clk 0:01:34.5]} 22... Qxf3 {[%clk 0:01:32.4]} 23. Nd2 {[%clk 0:01:25.6]}
23... Qxd5 {[%clk 0:01:27.3]} 24. Qxd5 {[%clk 0:01:22.8]} 24... Nxd5 {[%clk
0:01:28.2]} 25. Bc5 {[%clk 0:01:17.6]} 25... Rfe8 {[%clk 0:01:20.8]} 26. Ne4
{[%clk 0:01:16.7]} 26... Rc6 {[%clk 0:01:12.4]} 27. Kb1 {[%clk 0:01:06.5]} 27...
Bf5 {[%clk 0:01:06.2]} 28. Nf2 {[%clk 0:00:58.7]} 28... Bxd3 {[%clk 0:00:48.3]}
29. Nxd3 {[%clk 0:00:57.9]} 29... h5 {[%clk 0:00:48.2]} 30. Bf2 {[%clk
0:00:50.5]} 30... Rxc2 {[%clk 0:00:39.2]} 31. Kxc2 {[%clk 0:00:50.4]} 31... Re2+
{[%clk 0:00:38.6]} 32. Rd2 {[%clk 0:00:48.3]} 32... Rxd2+ {[%clk 0:00:38.9]} 33.
Kxd2 {[%clk 0:00:48.7]} 33... g5 {[%clk 0:00:39.6]} 34. Ne5 {[%clk 0:00:42.6]}
34... f5 {[%clk 0:00:33.8]} 35. Kd3 {[%clk 0:00:42]} 35... Kg7 {[%clk
0:00:30.8]} 36. Kd4 {[%clk 0:00:37.2]} 36... Nf6 {[%clk 0:00:29.5]} 37. Nf3
{[%clk 0:00:34.9]} 37... Ne4 {[%clk 0:00:21]} 38. Be1 {[%clk 0:00:32.2]} 38...
Kg6 {[%clk 0:00:17.3]} 39. a4 {[%clk 0:00:31.5]} 39... h4 {[%clk 0:00:16.3]} 40.
Ke5 {[%clk 0:00:30.3]} 40... h3 {[%clk 0:00:15.1]} 41. b4 {[%clk 0:00:27.4]}
41... Nf6 {[%clk 0:00:09.9]} 42. Bd2 {[%clk 0:00:21.2]} 42... Ng4+ {[%clk
0:00:09.8]} 43. Ke6 {[%clk 0:00:18.6]} 43... h2 {[%clk 0:00:10.1]} 44. Nxh2
{[%clk 0:00:18.2]} 44... Nxh2 {[%clk 0:00:11]} 45. b5 {[%clk 0:00:18.3]} 45...
axb5 {[%clk 0:00:10.6]} 46. axb5 {[%clk 0:00:19.2]} 46... Nf3 {[%clk 0:00:11.4]}
47. Bc3 {[%clk 0:00:18.7]} 47... g4 {[%clk 0:00:11.4]} 48. Kd7 {[%clk
0:00:18.5]} 48... g3 {[%clk 0:00:11]} 49. Ke6 {[%clk 0:00:17.6]} 49... g2 {[%clk
0:00:11.1]} 50. Kd7 {[%clk 0:00:17.1]} 0-1

[Event "*** SCC Grand Prix: Titled Tuesday Blitz"]
[Site "Chess.com"]
[Date "2020.10.06"]
[Round "9"]
[White "frederiksvane"]
[Black "Durarbayli"]
[Result "0-1"]
[WhiteElo "2680"]
[BlackElo "2818"]
[TimeControl "180+1"]
[EndTime "11:46:56 PDT"]
[Termination "Durarbayli won by checkmate"]

1. e4 {[%clk 0:03:00.9]} 1... c5 {[%clk 0:02:53.3]} 2. Nf3 {[%clk 0:03:01.2]}
2... d6 {[%clk 0:02:53.7]} 3. Bb5+ {[%clk 0:03:01.3]} 3... Bd7 {[%clk
0:02:52.8]} 4. c4 {[%clk 0:03:01.2]} 4... Bxb5 {[%clk 0:02:40.8]} 5. cxb5 {[%clk
0:03:02.1]} 5... Nd7 {[%clk 0:02:40.1]} 6. Nc3 {[%clk 0:03:01.7]} 6... g6 {[%clk
0:02:39.3]} 7. O-O {[%clk 0:03:01.5]} 7... Bg7 {[%clk 0:02:38.8]} 8. d4 {[%clk
0:03:01.6]} 8... cxd4 {[%clk 0:02:38]} 9. Nxd4 {[%clk 0:03:02.5]} 9... Ngf6
{[%clk 0:02:38]} 10. Qe2 {[%clk 0:03:02.5]} 10... Rc8 {[%clk 0:02:37.4]} 11. Rd1
{[%clk 0:03:01.5]} 11... O-O {[%clk 0:02:36.2]} 12. Bg5 {[%clk 0:03:00.5]} 12...
h6 {[%clk 0:02:17.1]} 13. Bh4 {[%clk 0:02:59.8]} 13... Qb6 {[%clk 0:02:12.8]}
14. Rac1 {[%clk 0:02:57.4]} 14... e6 {[%clk 0:01:39.2]} 15. Nc2 {[%clk
0:02:36.9]} 15... Ne5 {[%clk 0:01:33.1]} 16. Ne3 {[%clk 0:02:34.3]} 16... Rfe8
{[%clk 0:00:59.2]} 17. Kh1 {[%clk 0:02:33.4]} 17... Nh5 {[%clk 0:00:58.1]} 18.
Bg3 {[%clk 0:02:20.8]} 18... Nxg3+ {[%clk 0:00:57.9]} 19. hxg3 {[%clk
0:02:21.7]} 19... h5 {[%clk 0:00:53]} 20. Rc2 {[%clk 0:02:09.9]} 20... Red8
{[%clk 0:00:46.9]} 21. Rdc1 {[%clk 0:02:00.6]} 21... Qa5 {[%clk 0:00:44.5]} 22.
a3 {[%clk 0:01:51.9]} 22... Re8 {[%clk 0:00:33.8]} 23. Kg1 {[%clk 0:01:50.3]}
23... Bh6 {[%clk 0:00:19]} 24. f4 {[%clk 0:01:47.2]} 24... Nd7 {[%clk
0:00:19.6]} 25. Kf1 {[%clk 0:01:14.8]} 25... Nf6 {[%clk 0:00:15.9]} 26. Nc4
{[%clk 0:01:10.3]} 26... Qd8 {[%clk 0:00:15.4]} 27. Nxd6 {[%clk 0:01:10.4]}
27... Qxd6 {[%clk 0:00:15.1]} 28. e5 {[%clk 0:01:10.8]} 28... Qd7 {[%clk
0:00:11.2]} 29. exf6 {[%clk 0:01:08.3]} 29... e5 {[%clk 0:00:12.1]} 30. Rd1
{[%clk 0:00:41.4]} 30... Qf5 {[%clk 0:00:11.8]} 31. Rd5 {[%clk 0:00:37.1]} 31...
Qxf6 {[%clk 0:00:11.9]} 32. Rxe5 {[%clk 0:00:27.1]} 32... Rxe5 {[%clk
0:00:11.6]} 33. Qxe5 {[%clk 0:00:28]} 33... Qd8 {[%clk 0:00:11.5]} 34. Re2
{[%clk 0:00:19.3]} 34... Bg7 {[%clk 0:00:11.8]} 35. Qd5 {[%clk 0:00:15.3]} 35...
Qc7 {[%clk 0:00:08.9]} 36. Ne4 {[%clk 0:00:09.5]} 36... Rd8 {[%clk 0:00:08.9]}
37. Qb3 {[%clk 0:00:09.6]} 37... Qc1+ {[%clk 0:00:06.9]} 38. Re1 {[%clk
0:00:10]} 38... Qc7 {[%clk 0:00:07]} 39. Kg1 {[%clk 0:00:09.6]} 39... Bd4+
{[%clk 0:00:06.6]} 40. Kh1 {[%clk 0:00:10.2]} 40... Kg7 {[%clk 0:00:07.4]} 41.
Qb4 {[%clk 0:00:06.6]} 41... h4 {[%clk 0:00:07.4]} 42. Ng5 {[%clk 0:00:04.5]}
42... hxg3 {[%clk 0:00:05.6]} 43. Nf3 {[%clk 0:00:02.9]} 43... Rh8+ {[%clk
0:00:05.1]} 44. Nh4 {[%clk 0:00:01.8]} 44... Rxh4# {[%clk 0:00:05.5]} 0-1

[Event "*** SCC Grand Prix: Titled Tuesday Blitz"]
[Site "Chess.com"]
[Date "2020.10.06"]
[Round "9"]
[White "W_Amadeus"]
[Black "Artyom_ChessMate"]
[Result "1-0"]
[WhiteElo "2703"]
[BlackElo "2512"]
[TimeControl "180+1"]
[EndTime "11:46:58 PDT"]
[Termination "W_Amadeus won by resignation"]

1. d4 {[%clk 0:03:00.9]} 1... d5 {[%clk 0:02:59.8]} 2. Nf3 {[%clk 0:03:01.2]}
2... Nf6 {[%clk 0:02:54.4]} 3. Bf4 {[%clk 0:03:01.5]} 3... c5 {[%clk 0:02:53.5]}
4. e3 {[%clk 0:02:58]} 4... Nc6 {[%clk 0:02:54.4]} 5. Nbd2 {[%clk 0:02:57.6]}
5... cxd4 {[%clk 0:02:52]} 6. exd4 {[%clk 0:02:58.5]} 6... g6 {[%clk 0:02:51.6]}
7. c3 {[%clk 0:02:56.2]} 7... Bg7 {[%clk 0:02:51.9]} 8. Bd3 {[%clk 0:02:55.7]}
8... O-O {[%clk 0:02:52.1]} 9. O-O {[%clk 0:02:55.9]} 9... Bf5 {[%clk
0:02:47.4]} 10. Bxf5 {[%clk 0:02:46.3]} 10... gxf5 {[%clk 0:02:48.2]} 11. Ne5
{[%clk 0:02:46.9]} 11... Nxe5 {[%clk 0:02:45.3]} 12. Bxe5 {[%clk 0:02:47.8]}
12... e6 {[%clk 0:02:45.8]} 13. Re1 {[%clk 0:02:46.1]} 13... Kh8 {[%clk
0:02:45.5]} 14. Nf3 {[%clk 0:02:39.5]} 14... Ne4 {[%clk 0:02:43.9]} 15. Bxg7+
{[%clk 0:02:38]} 15... Kxg7 {[%clk 0:02:44.8]} 16. Ne5 {[%clk 0:02:38.5]} 16...
Qf6 {[%clk 0:02:42.9]} 17. f3 {[%clk 0:02:34.2]} 17... Nd6 {[%clk 0:02:37.8]}
18. Nd7 {[%clk 0:02:33.2]} 18... Qg6 {[%clk 0:02:37.1]} 19. Nxf8 {[%clk
0:02:32.9]} 19... Rxf8 {[%clk 0:02:36.7]} 20. Qe2 {[%clk 0:02:29]} 20... Ne8
{[%clk 0:02:35]} 21. Qe5+ {[%clk 0:02:28.2]} 21... Nf6 {[%clk 0:02:35.4]} 22.
Qg3 {[%clk 0:02:28.2]} 22... Rc8 {[%clk 0:02:32.4]} 23. a4 {[%clk 0:02:25.3]}
23... Nh5 {[%clk 0:02:27.2]} 24. Qxg6+ {[%clk 0:02:22.6]} 24... hxg6 {[%clk
0:02:28.1]} 25. g3 {[%clk 0:02:19.7]} 25... f4 {[%clk 0:02:25.5]} 26. g4 {[%clk
0:02:16.4]} 26... Nf6 {[%clk 0:02:25.6]} 27. Kg2 {[%clk 0:02:13.8]} 27... Nd7
{[%clk 0:02:25.4]} 28. a5 {[%clk 0:02:13.5]} 28... Nf6 {[%clk 0:02:20.7]} 29.
Ra3 {[%clk 0:02:06.4]} 29... Ne8 {[%clk 0:02:20.5]} 30. Rb3 {[%clk 0:01:41.6]}
30... Nd6 {[%clk 0:02:20]} 31. Ra1 {[%clk 0:01:40.4]} 31... Rc7 {[%clk
0:02:14.1]} 32. a6 {[%clk 0:01:36.7]} 32... b6 {[%clk 0:02:11.3]} 33. Rxb6
{[%clk 0:01:35.6]} 33... axb6 {[%clk 0:01:41.2]} 34. a7 {[%clk 0:01:34]} 34...
Rxa7 {[%clk 0:01:42.1]} 35. Rxa7 {[%clk 0:01:34.3]} 35... Nc4 {[%clk 0:01:43]}
36. Ra2 {[%clk 0:01:28.4]} 36... Kf6 {[%clk 0:01:40.4]} 37. h4 {[%clk 0:01:27]}
37... e5 {[%clk 0:01:38.5]} 38. dxe5+ {[%clk 0:01:18.1]} 38... Kxe5 {[%clk
0:01:39.4]} 39. Kf2 {[%clk 0:01:14.1]} 39... b5 {[%clk 0:01:35.1]} 40. Ke2
{[%clk 0:00:33.3]} 40... d4 {[%clk 0:01:15.5]} 41. b3 {[%clk 0:00:26.5]} 41...
Nd6 {[%clk 0:00:58.8]} 42. cxd4+ {[%clk 0:00:26.2]} 42... Kxd4 {[%clk
0:00:59.7]} 43. Ra7 {[%clk 0:00:21.7]} 43... Ke5 {[%clk 0:00:58.1]} 44. h5
{[%clk 0:00:19.1]} 44... gxh5 {[%clk 0:00:56.8]} 45. gxh5 {[%clk 0:00:20]} 45...
Nf5 {[%clk 0:00:44]} 46. Rxf7 {[%clk 0:00:08.5]} 46... Ng3+ {[%clk 0:00:36.8]}
47. Kf2 {[%clk 0:00:05.4]} 47... Nxh5 {[%clk 0:00:37.7]} 48. Rb7 {[%clk
0:00:05.6]} 48... Nf6 {[%clk 0:00:37]} 49. Rxb5+ {[%clk 0:00:05.1]} 49... Kd4
{[%clk 0:00:35.9]} 50. Rf5 {[%clk 0:00:04.5]} 50... Nd5 {[%clk 0:00:36.5]} 51.
Rxd5+ {[%clk 0:00:02.8]} 51... Kxd5 {[%clk 0:00:37.4]} 52. Kg2 {[%clk
0:00:03.4]} 52... Kd4 {[%clk 0:00:37.5]} 53. Kh3 {[%clk 0:00:04]} 53... Kd3
{[%clk 0:00:34.2]} 54. Kg4 {[%clk 0:00:04.9]} 54... Ke3 {[%clk 0:00:34.7]} 55.
b4 {[%clk 0:00:05]} 1-0

[Event "*** SCC Grand Prix: Titled Tuesday Blitz"]
[Site "Chess.com"]
[Date "2020.10.06"]
[Round "9"]
[White "GM_Levan_Pantsulaia"]
[Black "Indianlad"]
[Result "1-0"]
[WhiteElo "2819"]
[BlackElo "2918"]
[TimeControl "180+1"]
[EndTime "11:47:00 PDT"]
[Termination "GM_Levan_Pantsulaia won on time"]

1. Nf3 {[%clk 0:03:00.9]} 1... d5 {[%clk 0:03:00.4]} 2. g3 {[%clk 0:03:00.9]}
2... Nc6 {[%clk 0:02:59.5]} 3. c4 {[%clk 0:02:59.3]} 3... d4 {[%clk 0:02:59.1]}
4. d3 {[%clk 0:02:58.8]} 4... e5 {[%clk 0:02:59.1]} 5. Bg2 {[%clk 0:02:59.5]}
5... Nf6 {[%clk 0:02:59.1]} 6. O-O {[%clk 0:02:59.3]} 6... a5 {[%clk 0:02:57.9]}
7. Na3 {[%clk 0:02:58.2]} 7... Bc5 {[%clk 0:02:56.1]} 8. Nb5 {[%clk 0:02:50.9]}
8... h6 {[%clk 0:02:53.4]} 9. e3 {[%clk 0:02:49.2]} 9... dxe3 {[%clk 0:02:45.1]}
10. Bxe3 {[%clk 0:02:50.1]} 10... Bxe3 {[%clk 0:02:41]} 11. fxe3 {[%clk
0:02:51]} 11... O-O {[%clk 0:02:41.5]} 12. d4 {[%clk 0:02:50]} 12... exd4 {[%clk
0:02:21.9]} 13. exd4 {[%clk 0:02:50.9]} 13... Bg4 {[%clk 0:02:21]} 14. Qd2
{[%clk 0:02:25.5]} 14... Bxf3 {[%clk 0:02:16.1]} 15. Bxf3 {[%clk 0:02:24.2]}
15... Ne5 {[%clk 0:02:15.1]} 16. Be2 {[%clk 0:02:15.4]} 16... c6 {[%clk
0:02:14.7]} 17. Nc3 {[%clk 0:02:15.2]} 17... Re8 {[%clk 0:02:11.9]} 18. Rad1
{[%clk 0:02:13.1]} 18... Ned7 {[%clk 0:02:12.5]} 19. Bf3 {[%clk 0:02:11.5]}
19... Qb6 {[%clk 0:02:09.7]} 20. b3 {[%clk 0:02:10.4]} 20... Rad8 {[%clk
0:02:07.1]} 21. Qf2 {[%clk 0:02:09.7]} 21... Qb4 {[%clk 0:02:04.1]} 22. Ne2
{[%clk 0:02:02.8]} 22... Nf8 {[%clk 0:02:01.4]} 23. Nf4 {[%clk 0:02:00.1]} 23...
Qd6 {[%clk 0:01:46.2]} 24. c5 {[%clk 0:01:47.2]} 24... Qc7 {[%clk 0:01:46.3]}
25. d5 {[%clk 0:01:45.6]} 25... N8d7 {[%clk 0:01:33.6]} 26. d6 {[%clk
0:01:35.7]} 26... Qb8 {[%clk 0:01:34.2]} 27. a3 {[%clk 0:01:31.6]} 27... Ne5
{[%clk 0:01:18.4]} 28. b4 {[%clk 0:01:31.7]} 28... axb4 {[%clk 0:01:16.9]} 29.
axb4 {[%clk 0:01:32.5]} 29... b6 {[%clk 0:01:17.4]} 30. Nh5 {[%clk 0:01:20.9]}
30... Nxh5 {[%clk 0:01:14.1]} 31. Bxh5 {[%clk 0:01:21.8]} 31... g6 {[%clk
0:01:14.4]} 32. Bf3 {[%clk 0:01:17.7]} 32... bxc5 {[%clk 0:01:13.9]} 33. bxc5
{[%clk 0:01:18.6]} 33... Qa7 {[%clk 0:01:09.6]} 34. Bg2 {[%clk 0:01:17.4]} 34...
Re6 {[%clk 0:00:46.1]} 35. h3 {[%clk 0:00:57.5]} 35... Rf8 {[%clk 0:00:41.2]}
36. Kh2 {[%clk 0:00:55.8]} 36... Kg7 {[%clk 0:00:39.9]} 37. Rde1 {[%clk
0:00:52.8]} 37... Kh7 {[%clk 0:00:38.2]} 38. Qd4 {[%clk 0:00:51.9]} 38... f6
{[%clk 0:00:28.7]} 39. Ra1 {[%clk 0:00:50.5]} 39... Qg7 {[%clk 0:00:25.6]} 40.
Ra2 {[%clk 0:00:50.3]} 40... f5 {[%clk 0:00:25.5]} 41. Kh1 {[%clk 0:00:44.6]}
41... h5 {[%clk 0:00:21.1]} 42. Rfa1 {[%clk 0:00:40.7]} 42... Rf7 {[%clk
0:00:21.6]} 43. Re2 {[%clk 0:00:35.1]} 43... Rf8 {[%clk 0:00:08.5]} 44. Rae1
{[%clk 0:00:29]} 44... Rfe8 {[%clk 0:00:08.5]} 45. Bxc6 {[%clk 0:00:27.8]} 45...
Rc8 {[%clk 0:00:03.8]} 46. Bg2 {[%clk 0:00:26.5]} 46... Rce8 {[%clk 0:00:02.1]}
47. c6 {[%clk 0:00:24.7]} 1-0